fUSD/lending_fUSD_20260501
["ID","MTS","AMOUNT","RATE_DAILY","PERIOD"]
[421425689,1777627746000,-637.73434102,9.508e-05,2]
[421425691,1777627756000,-21471.83537655,9.509e-05,2]
[421425693,1777627761000,-93936.36710176,9.509e-05,2]
[421425692,1777627761000,-169105.20749824,9.509e-05,2]
[421425694,1777627774000,-1100.0,9.508e-05,2]
[421425695,1777627774000,-20.742504,9.509e-05,2]
[421425697,1777627832000,-508.0,9.508e-05,2]
[421425700,1777627832000,-300.0,9.508e-05,2]
[421425698,1777627832000,-692.0,9.508e-05,2]
[421425702,1777627832000,-234155.69513694,9.509e-05,2]
[421425699,1777627832000,-300.0,9.508e-05,2]
[421425704,1777627832000,-4596.692472,9.509e-05,2]
[421425703,1777627832000,-40001.66859179,9.509e-05,2]
[421425701,1777627832000,-150.0,9.508e-05,2]
[421425705,1777627832000,-531.73649619,9.509e-05,2]
[421425706,1777627832000,-4268.23815807,9.509e-05,2]
[421425713,1777627837000,-380.52932165,9.509e-05,2]
[421425712,1777627837000,-287.06279732,9.509e-05,2]
[421425714,1777627838000,-613.1128153,9.509e-05,2]
[421425715,1777627838000,-5903.718551,9.509e-05,2]
[421425717,1777627838000,-8355.461751,9.509e-05,2]
[421425718,1777627838000,-36008.590824,9.509e-05,2]
[421425720,1777627838000,-571.54802102,9.609e-05,2]
[421425719,1777627838000,-584.30197898,9.509e-05,2]
[421425716,1777627838000,-48829.746,9.509e-05,2]
[421425848,1777627839000,-4168.45762947,9.609e-05,2]
[421425850,1777627840000,-0.00094453,9.609e-05,2]
[421425849,1777627840000,-3885.1,9.609e-05,2]
[421425856,1777627841000,-2538.17426196,9.609e-05,2]
[421425911,1777627843000,-6000.0,9.609e-05,2]
[421425867,1777627843000,-461.57068188,9.609e-05,2]
[421425912,1777627845000,-12949.40223683,9.609e-05,2]
[421425919,1777627846000,-43.73437132,9.609e-05,2]
[421425914,1777627846000,-6248.77853234,9.609e-05,2]
[421425915,1777627846000,-875.0,9.609e-05,2]
[421425913,1777627846000,-77.45677068,9.609e-05,2]
[421426091,1777627868000,180.42,7.732e-05,2]
[421426092,1777627870000,9819.59,9.409e-05,2]
[421426094,1777628053000,-654.342,9.156e-05,2]
[421426095,1777628406000,-563.16,9.156e-05,2]
[421426096,1777628407000,-563.16,9.135e-05,2]
[421426097,1777628419000,1614.3,4.411e-05,2]
[421426109,1777628420000,1142.97,6.501e-05,2]
[421426099,1777628420000,1614.3,4.875e-05,2]
[421426100,1777628420000,157.11,5.108e-05,2]
[421426102,1777628420000,1614.3,5.34e-05,2]
[421426101,1777628420000,1457.19,5.108e-05,2]
[421426103,1777628420000,1614.3,5.572e-05,2]
[421426105,1777628420000,1300.08,5.804e-05,2]
[421426106,1777628420000,1614.3,6.036e-05,2]
[421426104,1777628420000,314.22,5.804e-05,2]
[421426107,1777628420000,1614.3,6.268e-05,2]
[421426108,1777628420000,471.33,6.501e-05,2]
[421426098,1777628420000,1614.3,4.643e-05,2]
[421426111,1777628420000,1614.3,6.965e-05,2]
[421426121,1777628420000,1614.3,8.59e-05,2]
[421426120,1777628420000,1614.3,8.358e-05,2]
[421426119,1777628420000,459.29945758,8.126e-05,2]
[421426116,1777628420000,1614.3,7.661e-05,2]
[421426117,1777628420000,1614.3,7.894e-05,2]
[421426110,1777628420000,1614.3,6.733e-05,2]
[421426113,1777628420000,-268.0,9.135e-05,2]
[421426112,1777628420000,1614.3,7.197e-05,2]
[421426118,1777628420000,1155.00054242,8.126e-05,2]
[421426115,1777628420000,1614.3,7.429e-05,2]
[421426114,1777628420000,-139.87,9.135e-05,2]
[421426123,1777628421000,-563.16,8.822e-05,2]
[421426122,1777628421000,-563.16,8.822e-05,2]
[421426125,1777628422000,-563.16,9.135e-05,2]
[421426124,1777628422000,-487.98,8.822e-05,2]
[421426126,1777628423000,-563.16,9.135e-05,2]
[421426128,1777628424000,-208.95,9.203e-05,2]
[421426127,1777628424000,-23.07,9.135e-05,2]
[421426130,1777628424000,-563.16,9.251e-05,2]
[421426131,1777628424000,241.0,5.803e-05,2]
[421426129,1777628424000,-331.14,9.251e-05,2]
[421426132,1777628621000,491.9060975,6.034e-05,2]
[421426133,1777628622000,-2021.97763837,9.034e-05,2]
[421426134,1777628622000,232.0,6.034e-05,2]
[421426135,1777628623000,-2021.97763837,9.252e-05,2]
[421426140,1777628624000,250.0,6.034e-05,2]
[421426139,1777628624000,250.0,6.637e-05,2]
[421426137,1777628624000,-300.0,9.251e-05,2]
[421426138,1777628624000,-1721.97763837,9.252e-05,2]
[421426136,1777628624000,-2021.97763837,9.252e-05,2]
[421426142,1777628625000,153.0,0.000114,5]
[421426141,1777628625000,918.34,8.957e-05,2]
[421426143,1777628626000,-2021.97763837,9.252e-05,2]
[421426144,1777628626000,-2021.97763837,9.252e-05,2]
[421426145,1777628627000,-248.45180815,9.252e-05,2]
[421426146,1777628627000,-1773.52583022,9.294e-05,2]
[421426147,1777628628000,-2021.97763837,9.294e-05,2]
[421426149,1777628629000,-1721.97763837,9.294e-05,2]
[421426148,1777628629000,-300.0,9.251e-05,2]
[421426150,1777628630000,-2021.97763837,9.294e-05,2]
[421426154,1777628631000,-11.4363837,9.295e-05,2]
[421426153,1777628631000,-1000.0,9.294e-05,2]
[421426151,1777628631000,-860.54125467,9.294e-05,2]
[421426152,1777628631000,-150.0,9.294e-05,2]
[421426156,1777628632000,-2021.97763837,9.295e-05,2]
[421426155,1777628632000,-2021.97763837,9.295e-05,2]
[421426158,1777628633000,-1021.97763837,9.295e-05,2]
[421426157,1777628633000,-1000.0,9.294e-05,2]
[421426160,1777628634000,-1021.31591237,9.295e-05,2]
[421426159,1777628634000,-1000.661726,8.988e-05,2]
[421426161,1777628655000,-266.0,8.988e-05,2]
[421426162,1777628682000,-300.0,9.294e-05,2]
[421426163,1777628683000,-300.0,9.295e-05,2]
[421426165,1777628964000,-10000.01,9.295e-05,2]
[421426164,1777628964000,-10000.01,9.295e-05,2]
[421426173,1777628965000,-500.0,9.408e-05,2]
[421426167,1777628965000,-1200.0,9.294e-05,2]
[421426166,1777628965000,-300.0,9.294e-05,2]
[421426168,1777628965000,-6224.47478882,9.295e-05,2]
[421426171,1777628965000,-393.7806,9.408e-05,2]
[421426169,1777628965000,-500.0,9.295e-05,2]
[421426170,1777628965000,-150.0,9.407e-05,2]
[421426172,1777628965000,-500.0,9.408e-05,2]
[421426175,1777628965000,-268.24538882,9.408e-05,2]
[421426174,1777628965000,-231.75461118,9.408e-05,2]
[421426176,1777628965000,-500.0,9.408e-05,2]
[421426185,1777628965000,-500.0,9.408e-05,2]
[421426184,1777628965000,-500.0,9.408e-05,2]
[421426183,1777628965000,-500.0,9.408e-05,2]
[421426182,1777628965000,-500.0,9.408e-05,2]
[421426178,1777628965000,-500.0,9.408e-05,2]
[421426181,1777628965000,-500.0,9.408e-05,2]
[421426177,1777628965000,-500.0,9.408e-05,2]
[421426179,1777628965000,-500.0,9.408e-05,2]
[421426186,1777628965000,-500.0,9.408e-05,2]
[421426180,1777628965000,-500.0,9.408e-05,2]
[421426187,1777628966000,-500.0,9.408e-05,2]
[421426188,1777628966000,-500.0,9.408e-05,2]
[421426190,1777628966000,-500.0,9.408e-05,2]
[421426189,1777628966000,-500.0,9.408e-05,2]
[421426193,1777628966000,-500.0,9.408e-05,2]
[421426191,1777628966000,-500.0,9.408e-05,2]
[421426194,1777628966000,-366.44147399,9.408e-05,2]
[421426195,1777628966000,-365.32313719,9.408e-05,2]
[421426192,1777628966000,-500.0,9.408e-05,2]
[421426197,1777628980000,-10000.01,9.404e-05,2]
[421426199,1777628982000,-220.25,9.244e-05,2]
[421426198,1777628982000,-320.0,9.19e-05,2]
[421426200,1777628982000,-9459.76,9.404e-05,2]
[421426201,1777628983000,-10000.01,9.404e-05,2]
[421426204,1777628984000,-10000.01,9.404e-05,2]
[421426203,1777628984000,-10000.01,9.404e-05,2]
[421426205,1777628985000,-10000.01,9.404e-05,2]
[421426206,1777628986000,-10000.01,9.404e-05,2]
[421426207,1777628987000,-10000.01,9.404e-05,2]
[421426208,1777628988000,-29229.75065403,9.404e-05,2]
[421426209,1777628988000,-10000.01,9.404e-05,2]
[421426211,1777628989000,-10000.01,9.404e-05,2]
[421426210,1777628989000,-10000.01,9.404e-05,2]
[421426212,1777628990000,-300.0,9.171e-05,2]
[421426213,1777628990000,-9700.01,9.172e-05,2]
[421426217,1777628991000,-9500.01,9.172e-05,2]
[421426216,1777628991000,-500.0,9.011e-05,2]
[421426214,1777628991000,-300.0,9.171e-05,2]
[421426215,1777628991000,-9700.01,9.172e-05,2]
[421426219,1777628992000,-10000.01,9.172e-05,2]
[421426228,1777629031000,-4625.38,9.195e-05,2]
[421426226,1777629031000,-5374.63,9.172e-05,2]
[421426237,1777629032000,-9700.01,9.195e-05,2]
[421426230,1777629032000,-39362.22431819,9.195e-05,2]
[421426229,1777629032000,300.0,9.171e-05,2]
[421426248,1777629033000,-57327.08601087,9.195e-05,2]
[421426250,1777629033000,-10000.01,9.195e-05,2]
[421426249,1777629033000,-21965.07418,9.195e-05,2]
[421426355,1777629086000,-8867.2080958,9.195e-05,2]
[421426356,1777629273000,-300.0,9.194e-05,2]
[421426357,1777629273000,-1200.0,9.194e-05,2]
[421426359,1777629275000,-604.22503791,9.195e-05,2]
[421426358,1777629275000,-2021.97763837,9.195e-05,2]
[421426368,1777629275000,-48836.92765638,9.404e-05,2]
[421426367,1777629275000,-500.47150084,9.383e-05,2]
[421426365,1777629275000,-436409.4859539,9.309e-05,2]
[421426363,1777629275000,-1306.353504,9.195e-05,2]
[421426362,1777629275000,-8119.79882738,9.195e-05,2]
[421426366,1777629275000,-45134.4911461,9.309e-05,2]
[421426361,1777629275000,-380.68182096,9.195e-05,2]
[421426369,1777629275000,-8192.02034264,9.404e-05,2]
[421426360,1777629275000,-674.06681493,9.195e-05,2]
[421426375,1777629275000,-8408.46727034,9.404e-05,2]
[421426372,1777629275000,-867.29465335,9.404e-05,2]
[421426380,1777629275000,-500.0,9.195e-05,2]
[421426381,1777629275000,-9500.01,9.404e-05,2]
[421426379,1777629275000,-415.78432906,9.404e-05,2]
[421426377,1777629275000,-6127.228,9.404e-05,2]
[421426378,1777629275000,-501.55199785,9.404e-05,2]
[421426364,1777629275000,-2173830.18345159,9.195e-05,2]
[421426370,1777629275000,-158112.59863683,9.404e-05,2]
[421426371,1777629275000,-459.09392533,9.404e-05,2]
[421426376,1777629275000,-4556.57125749,9.404e-05,2]
[421426374,1777629275000,-41665.57835928,9.404e-05,2]
[421426373,1777629275000,-1850.0,9.404e-05,2]
[421426382,1777629276000,-684.14999999,9.404e-05,2]
[421426383,1777629276000,-1207.96370597,9.404e-05,2]
[421426384,1777629276000,-1478.63014659,9.404e-05,2]
[421426386,1777629276000,-20118.42370902,9.404e-05,2]
[421426385,1777629276000,-11556.63275172,9.404e-05,2]
[421426388,1777629276000,-4144.1699421,9.404e-05,2]
[421426390,1777629276000,-4295.20368783,9.404e-05,2]
[421426387,1777629276000,-269.21200311,9.404e-05,2]
[421426392,1777629276000,-15410.5814108,9.309e-05,2]
[421426391,1777629276000,-0.00055336,9.309e-05,2]
[421426398,1777629276000,-3724.79567886,9.404e-05,2]
[421426397,1777629276000,-4940.67,9.404e-05,2]
[421426396,1777629276000,-21605.06701257,9.404e-05,2]
[421426399,1777629276000,-558.21486605,9.404e-05,2]
[421426393,1777629276000,-16382.70323584,9.309e-05,2]
[421426394,1777629276000,-20524.85964416,9.404e-05,2]
[421426395,1777629276000,-2482.90102408,9.404e-05,2]
[421426389,1777629276000,-380.52932165,9.404e-05,2]
[421426400,1777629277000,-974.9999998,9.404e-05,2]
[421426407,1777629277000,-10000.01,9.404e-05,2]
[421426406,1777629277000,-44900.56793725,9.404e-05,2]
[421426405,1777629277000,-11556.8512779,9.404e-05,2]
[421426404,1777629277000,-10000.01,9.404e-05,2]
[421426403,1777629277000,-15455.6,9.404e-05,2]
[421426402,1777629277000,-564.67872648,9.404e-05,2]
[421426401,1777629277000,-284.55529313,9.404e-05,2]
[421426410,1777629278000,-300.0,9.194e-05,2]
[421426408,1777629278000,-300.0,9.194e-05,2]
[421426409,1777629278000,-150.0,9.194e-05,2]
[421426413,1777629278000,-618.6215666,9.194e-05,2]
[421426414,1777629278000,-7631.3884334,9.404e-05,2]
[421426412,1777629278000,-500.0,9.194e-05,2]
[421426411,1777629278000,-500.0,9.194e-05,2]
[421426416,1777629279000,-500.0,9.194e-05,2]
[421426418,1777629279000,-500.0,9.194e-05,2]
[421426417,1777629279000,-500.0,9.194e-05,2]
[421426419,1777629279000,-500.0,9.194e-05,2]
[421426420,1777629279000,-500.0,9.194e-05,2]
[421426423,1777629279000,-500.0,9.194e-05,2]
[421426421,1777629279000,-500.0,9.194e-05,2]
[421426424,1777629279000,-500.0,9.194e-05,2]
[421426425,1777629279000,-500.0,9.194e-05,2]
[421426422,1777629279000,-500.0,9.194e-05,2]
[421426426,1777629279000,-500.0,9.194e-05,2]
[421426428,1777629279000,-500.0,9.194e-05,2]
[421426429,1777629279000,-500.0,9.194e-05,2]
[421426435,1777629279000,-500.0,9.194e-05,2]
[421426432,1777629279000,-500.0,9.194e-05,2]
[421426433,1777629279000,-500.0,9.194e-05,2]
[421426431,1777629279000,-500.0,9.194e-05,2]
[421426430,1777629279000,-500.0,9.194e-05,2]
[421426436,1777629279000,-0.01,9.194e-05,2]
[421426434,1777629279000,-500.0,9.194e-05,2]
[421426415,1777629279000,364.0,0.00010306,5]
[421426427,1777629279000,-500.0,9.194e-05,2]
[421426449,1777629293000,-178.7384937,9.194e-05,2]
[421426445,1777629293000,-310.73264906,9.194e-05,2]
[421426448,1777629293000,-500.0,9.194e-05,2]
[421426444,1777629293000,-449.70530027,9.194e-05,2]
[421426454,1777629293000,153.07,6.134e-05,2]
[421426440,1777629293000,-500.0,9.194e-05,2]
[421426438,1777629293000,-328.511,9.011e-05,2]
[421426439,1777629293000,-499.99,9.194e-05,2]
[421426437,1777629293000,-4647.175,9.011e-05,2]
[421426442,1777629293000,-500.0,9.194e-05,2]
[421426441,1777629293000,-500.0,9.194e-05,2]
[421426446,1777629293000,-500.0,9.194e-05,2]
[421426458,1777629293000,1780.662,9.149e-05,2]
[421426450,1777629293000,-85.15755697,9.404e-05,2]
[421426461,1777629293000,217.0,4.601e-05,2]
[421426459,1777629293000,153.07,8.179e-05,2]
[421426460,1777629293000,153.07,8.69e-05,2]
[421426456,1777629293000,153.07,7.156e-05,2]
[421426457,1777629293000,153.07,7.668e-05,2]
[421426443,1777629293000,-500.0,9.194e-05,2]
[421426452,1777629293000,153.07,5.112e-05,2]
[421426453,1777629293000,153.07,5.623e-05,2]
[421426447,1777629293000,-500.0,9.194e-05,2]
[421426451,1777629293000,153.07,4.601e-05,2]
[421426455,1777629293000,153.07,6.645e-05,2]
[421426463,1777629294000,-2275.2836,9.304e-05,2]
[421426462,1777629294000,-153.07,9.201e-05,2]
[421426466,1777629294000,-7500.01,9.404e-05,2]
[421426465,1777629294000,-2500.0,9.304e-05,2]
[421426464,1777629294000,-7571.6564,9.404e-05,2]
[421426468,1777629296000,218.49,8.495e-05,2]
[421426467,1777629296000,-10000.01,9.404e-05,2]
[421426469,1777629297000,-10000.01,9.404e-05,2]
[421426471,1777629298000,-10000.01,9.404e-05,2]
[421426470,1777629298000,-10000.01,9.404e-05,2]
[421426478,1777629299000,-195.40615434,9.194e-05,2]
[421426472,1777629299000,217.0,4.601e-05,2]
[421426473,1777629299000,250.0,5.061e-05,2]
[421426474,1777629299000,250.0,4.601e-05,2]
[421426475,1777629299000,-440.11356337,9.194e-05,2]
[421426477,1777629299000,-500.0,9.194e-05,2]
[421426476,1777629299000,-500.0,9.194e-05,2]
[421426479,1777629299000,-500.0,9.194e-05,2]
[421426480,1777629299000,-500.0,9.194e-05,2]
[421426483,1777629299000,-165.42383128,9.194e-05,2]
[421426484,1777629299000,-500.0,9.194e-05,2]
[421426482,1777629299000,-500.0,9.194e-05,2]
[421426487,1777629299000,-500.0,9.194e-05,2]
[421426485,1777629299000,-500.0,9.194e-05,2]
[421426486,1777629299000,-500.0,9.194e-05,2]
[421426481,1777629299000,-500.0,9.194e-05,2]
[421426491,1777629300000,-10000.01,9.404e-05,2]
[421426490,1777629300000,2828.88,8.262e-05,2]
[421426489,1777629300000,-3699.06645101,9.404e-05,2]
[421426488,1777629300000,-500.0,9.194e-05,2]
[421426492,1777629301000,-10000.01,9.404e-05,2]
[421426493,1777629304000,5547.07,8.171e-05,2]
[421426494,1777629305000,1200.0,8.261e-05,2]
[421426495,1777629305000,-300.0,9.01e-05,2]
[421426501,1777629306000,-160.15328858,8.904e-05,2]
[421426500,1777629306000,295.42044072,8.216e-05,2]
[421426499,1777629306000,200.301913,0.000301,120]
[421426498,1777629306000,300.0,8.261e-05,2]
[421426497,1777629306000,1200.0,8.261e-05,2]
[421426496,1777629306000,190.0,8.261e-05,2]
[421426502,1777629368000,3568.811991,7.945e-05,2]
[421426505,1777629589000,4792.641991,8.703e-05,2]
[421426504,1777629589000,1431.198009,8.703e-05,2]
[421426508,1777629590000,-250.0,8.988e-05,2]
[421426507,1777629590000,-300.0,8.988e-05,2]
[421426506,1777629590000,-164.0,8.988e-05,2]
[421426510,1777629594000,884.76,8.467e-05,2]
[421426509,1777629594000,500.0,8.505e-05,2]
[421426515,1777629715000,2587.67213169,8.981e-05,2]
[421426517,1777629715000,-218.07975764,9.034e-05,2]
[421426516,1777629715000,-191.89148636,9.011e-05,2]
[421426518,1777629716000,-81.92024236,9.034e-05,2]
[421426519,1777629716000,-109.971244,9.034e-05,2]
[421426525,1777629913000,-191.89148636,9.034e-05,2]
[421426524,1777629913000,500.0,8.467e-05,2]
[421426526,1777629914000,-15.59671572,9.034e-05,2]
[421426527,1777629914000,-176.29477064,9.086e-05,2]
[421426528,1777629915000,-191.89148636,8.965e-05,2]
[421426530,1777629916000,-191.89148636,9.086e-05,2]
[421426529,1777629916000,-307.61145964,8.965e-05,2]
[421426531,1777629916000,4692.38854036,8.577e-05,2]
[421426533,1777629916000,200.0,0.00030137,120]
[421426534,1777629916000,300.0,8.576e-05,2]
[421426532,1777629916000,20514.10145964,8.577e-05,2]
[421426535,1777629916000,-191.89148636,9.086e-05,2]
[421426536,1777629917000,-191.89148636,9.086e-05,2]
[421426538,1777629917000,-107.86071608,9.094e-05,2]
[421426537,1777629917000,-84.03077028,9.086e-05,2]
[421426540,1777629918000,-191.89148636,9.094e-05,2]
[421426539,1777629918000,290.0,0.00010306,5]
[421426541,1777629919000,-200.24779756,9.094e-05,2]
[421426542,1777629919000,-7.24040452,9.094e-05,2]
[421426544,1777629920000,-207.48820208,9.094e-05,2]
[421426543,1777629920000,200.0,8.611e-05,2]
[421426545,1777629922000,-207.48820208,9.094e-05,2]
[421426548,1777629923000,-188.59041978,9.094e-05,2]
[421426547,1777629923000,-18.8977823,9.094e-05,2]
[421426546,1777629923000,1852.42,8.5e-05,2]
[421426549,1777629924000,-207.48820208,9.094e-05,2]
[421426551,1777629924000,-103.56682394,9.094e-05,2]
[421426550,1777629924000,-103.92137814,9.094e-05,2]
[421426552,1777629925000,-207.48820208,9.094e-05,2]
[421426554,1777629926000,-18.5432281,9.094e-05,2]
[421426553,1777629926000,-188.94497398,9.094e-05,2]
[421426555,1777629927000,-207.48820208,9.094e-05,2]
[421426556,1777629927000,203.37,8.577e-05,2]
[421426558,1777629927000,-66.48036774,9.094e-05,2]
[421426559,1777629927000,-141.00783434,9.094e-05,2]
[421426557,1777629927000,-207.48820208,9.094e-05,2]
[421426561,1777629928000,1500.0,0.00030137,120]
[421426560,1777629928000,-207.48820208,9.094e-05,2]
[421426571,1777629929000,1200.0,8.424e-05,2]
[421426570,1777629929000,300.0,8.424e-05,2]
[421426568,1777629929000,250.0,8.389e-05,2]
[421426569,1777629929000,-207.48820208,9.094e-05,2]
[421426566,1777629929000,-184.45,9.006e-05,2]
[421426567,1777629929000,-23.03820208,9.094e-05,2]
[421426565,1777629929000,13384.85,8.425e-05,2]
[421426564,1777629929000,737.78,8.577e-05,2]
[421426562,1777629929000,-151.50396358,9.094e-05,2]
[421426563,1777629929000,-55.9842385,9.094e-05,2]
[421426572,1777629930000,150.0,8.458e-05,2]
[421426573,1777629930000,150.0,8.458e-05,2]
[421426574,1777629930000,150.0,8.458e-05,2]
[421426577,1777630075000,189.84773086,8.458e-05,2]
[421426576,1777630075000,-150.0,8.771e-05,2]
[421426578,1777630075000,11.78194087,8.458e-05,2]
[421426585,1777630076000,150.0,8.692e-05,2]
[421426583,1777630076000,150.0,8.575e-05,2]
[421426584,1777630076000,150.0,8.634e-05,2]
[421426582,1777630076000,150.0,8.516e-05,2]
[421426581,1777630076000,150.0,8.458e-05,2]
[421426580,1777630076000,150.0,8.614e-05,2]
[421426579,1777630076000,150.0,8.458e-05,2]
[421426859,1777630275000,31825.29,8.182e-05,2]
[421426858,1777630275000,-150.0,8.751e-05,2]
[421426860,1777630276000,-150.0,8.771e-05,2]
[421426862,1777630276000,-93.63185848,8.869e-05,2]
[421426861,1777630276000,-150.0,8.81e-05,2]
[421426864,1777630276000,-96.68205029,8.927e-05,2]
[421426867,1777630276000,10000.01,8.158e-05,2]
[421426865,1777630276000,-53.31794971,8.927e-05,2]
[421426866,1777630276000,-96.68205029,8.927e-05,2]
[421426868,1777630276000,300.0,8.157e-05,2]
[421426863,1777630276000,-56.36814152,8.869e-05,2]
[421426869,1777630277000,-53.31794971,8.927e-05,2]
[421426870,1777630277000,-96.68205029,8.927e-05,2]
[421426873,1777630278000,-150.0,8.973e-05,2]
[421426872,1777630278000,-96.68205029,8.973e-05,2]
[421426871,1777630278000,-53.31794971,8.927e-05,2]
[421426879,1777630279000,166.61,5.075e-05,2]
[421426878,1777630279000,166.61,4.863e-05,2]
[421426875,1777630279000,166.61,4.229e-05,2]
[421426877,1777630279000,166.61,4.652e-05,2]
[421426874,1777630279000,166.61,4.018e-05,2]
[421426880,1777630279000,166.61,5.286e-05,2]
[421426876,1777630279000,166.61,4.441e-05,2]
[421426881,1777630279000,166.61,5.498e-05,2]
[421426885,1777630279000,166.61,6.344e-05,2]
[421426884,1777630279000,166.61,6.132e-05,2]
[421426882,1777630279000,166.61,5.709e-05,2]
[421426887,1777630279000,166.61,6.767e-05,2]
[421426886,1777630279000,166.61,6.555e-05,2]
[421426888,1777630279000,166.61,6.978e-05,2]
[421426890,1777630279000,-53.77344656,8.973e-05,2]
[421426889,1777630279000,166.61,7.189e-05,2]
[421426891,1777630279000,-96.22655344,8.973e-05,2]
[421426883,1777630279000,166.61,5.921e-05,2]
[421426892,1777630280000,166.61,7.401e-05,2]
[421426893,1777630280000,166.61,7.612e-05,2]
[421426894,1777630280000,166.61,7.824e-05,2]
[421426896,1777630280000,180.76,5.871e-05,2]
[421426897,1777630280000,300.0,8.157e-05,2]
[421426898,1777630280000,-150.0,8.973e-05,2]
[421426895,1777630280000,166.61,8.035e-05,2]
[421426901,1777630281000,20632.98,7.276e-05,2]
[421426900,1777630281000,-118.22655344,8.973e-05,2]
[421426899,1777630281000,-31.77344656,8.973e-05,2]
[421426902,1777630282000,-301.77344656,8.973e-05,2]
[421426904,1777630282000,-518.38811748,8.974e-05,2]
[421426903,1777630282000,-300.0,8.974e-05,2]
[421426907,1777630282000,-6787.8403,8.995e-05,2]
[421426906,1777630282000,-150.0,8.986e-05,2]
[421426905,1777630282000,-250.0,8.974e-05,2]
[421426908,1777630282000,-150.0,9.045e-05,2]
[421426909,1777630282000,-150.0,9.084e-05,2]
[421426911,1777630282000,-150.0,9.093e-05,2]
[421426912,1777630282000,-191.89148635,9.094e-05,2]
[421426913,1777630282000,-500.0,9.094e-05,2]
[421426915,1777630282000,-6214.15872533,9.094e-05,2]
[421426916,1777630282000,-155.82047584,9.094e-05,2]
[421426917,1777630282000,-6214.15872532,9.094e-05,2]
[421426914,1777630282000,-598.56660182,9.094e-05,2]
[421426919,1777630282000,-153.87363942,9.095e-05,2]
[421426918,1777630282000,-521.82113621,9.094e-05,2]
[421426920,1777630282000,-191.89148635,9.095e-05,2]
[421426921,1777630282000,-17538.83649281,9.095e-05,2]
[421426910,1777630282000,-150.0,9.084e-05,2]
[421426922,1777630283000,-13915.68865997,9.095e-05,2]
[421426924,1777630284000,1134.67,8.219e-05,2]
[421426923,1777630284000,212.0,4.018e-05,2]
[421426926,1777630285000,282.85812348,4.419e-05,2]
[421426925,1777630285000,-150.0,8.995e-05,2]
[421426927,1777630286000,150.0,5.424e-05,2]
[421426928,1777630286000,-119.0354,8.995e-05,2]
[421426930,1777630286000,16730.73,6.988e-05,2]
[421426929,1777630286000,-30.9646,9.094e-05,2]
[421426934,1777630287000,3439.39,6.874e-05,2]
[421426933,1777630287000,151.09,8.036e-05,2]
[421426932,1777630287000,453.27,6.988e-05,2]
[421426931,1777630287000,-150.0,9.094e-05,2]
[421426935,1777630288000,-150.0,9.084e-05,2]
[421426936,1777630289000,1026.8252194,4.018e-05,2]
[421426937,1777630289000,-1.09,9.084e-05,2]
[421426938,1777630289000,-148.91,9.093e-05,2]
[421426939,1777630289000,2000.0,6.854e-05,2]
[421426940,1777630289000,300.0,6.987e-05,2]
[421426944,1777630289000,250.0,4.419e-05,2]
[421426942,1777630289000,212.0,4.018e-05,2]
[421426943,1777630289000,-150.0,9.093e-05,2]
[421426946,1777630289000,-53.5536508,9.093e-05,2]
[421426945,1777630289000,-201.09,9.093e-05,2]
[421426941,1777630289000,193.0,4.419e-05,2]
[421426948,1777630290000,-150.0,9.093e-05,2]
[421426947,1777630290000,150.0,6.227e-05,2]
[421426950,1777630290000,-217.51285434,9.094e-05,2]
[421426952,1777630290000,-243.57653429,9.094e-05,2]
[421426951,1777630290000,-500.0,9.094e-05,2]
[421426953,1777630290000,211.4,6.722e-05,2]
[421426949,1777630290000,-262.82869137,9.093e-05,2]
[421426960,1777630291000,-88.6,9.095e-05,2]
[421426959,1777630291000,215.07,5.3e-05,2]
[421426958,1777630291000,-5706.922886,9.095e-05,2]
[421426954,1777630291000,-256.42346571,9.094e-05,2]
[421426957,1777630291000,-9345.08900999,9.095e-05,2]
[421426955,1777630291000,-524.0855843,9.094e-05,2]
[421426956,1777630291000,-500.0,9.094e-05,2]
[421426961,1777630292000,-150.0,9.095e-05,2]
[421426962,1777630292000,421.59,6.651e-05,2]
[421426964,1777630292000,421.59,8.313e-05,2]
[421426963,1777630292000,421.59,7.482e-05,2]
[421426965,1777630292000,1200.0,6.853e-05,2]
[421426969,1777630292000,190.0,8.292e-05,2]
[421426966,1777630292000,300.0,6.854e-05,2]